bitfinex/quotes_SOLUSD_20250429
["timestamp","ask_amount","ask_price","bid_price","bid_amount"]
[1745943441296,1e-08,148.84,148.83,11.65042122]
[1745943441493,1e-08,148.84,148.83,35.9400061]
[1745943441816,1e-08,148.84,148.83,54.58965496]
[1745943442190,1e-08,148.84,148.82,6.71937425]
[1745943444517,1e-08,148.84,148.82,31.00895913]
[1745943444914,1e-08,148.84,148.82,6.71937425]
[1745943445223,1e-08,148.84,148.82,31.00895913]
[1745943446396,1e-08,148.84,148.81,25.36962735]
[1745943446596,1e-08,148.84,148.82,24.28958488]
[1745943446807,1e-08,148.84,148.83,24.28958488]
[1745943447296,1e-08,148.84,148.82,24.28958488]
[1745943447694,1e-08,148.84,148.81,31.00956337]
[1745943448032,1e-08,148.84,148.77,18.71264886]
[1745943448033,24.28958488,148.82,148.77,18.71264886]
[1745943448211,1e-08,148.84,148.77,0.063]
[1745943448212,24.28958488,148.8,148.77,0.063]
[1745943448419,24.28958488,148.8,148.77,6.7847853]
[1745943449118,24.28958488,148.78,148.77,0.063]
[1745943450516,1.5793,148.8,148.77,24.35258488]
[1745943450826,37.64958489,148.84,148.79,24.28958488]
[1745943451128,24.28958488,148.83,148.79,24.28958488]
[1745943452098,37.64958489,148.84,148.8,24.28958488]
[1745943452325,24.28958488,148.83,148.79,24.28958488]
[1745943452733,13.36000001,148.84,148.79,24.28958488]
[1745943452734,1e-08,148.84,148.81,24.28958488]
[1745943453634,1e-08,148.84,148.82,24.28958488]
[1745943453817,1e-08,148.84,148.81,24.28958488]
[1745943454410,24.28958489,148.84,148.8,24.28958488]
[1745943454613,24.28958489,148.84,148.8,31.00981514]
[1745943454821,1e-08,148.84,148.8,6.72023026]
[1745943455011,1e-08,148.84,148.8,31.00981514]
[1745943455210,24.28958489,148.84,148.8,31.00981514]
[1745943455427,1e-08,148.84,148.81,24.28958488]
[1745943456233,24.28958489,148.84,148.8,31.00981514]
[1745943456915,1e-08,148.84,148.81,24.28958488]
[1745943457913,1e-08,148.84,148.82,24.28958488]
[1745943458517,1e-08,148.84,148.81,24.28958488]
[1745943459835,1e-08,148.84,148.82,6.71952694]
[1745943460015,24.28958489,148.84,148.8,24.28958488]
[1745943460337,1e-08,148.84,148.81,24.28958488]
[1745943461737,1e-08,148.84,148.8,6.7204301]
[1745943461914,1e-08,148.84,148.81,24.28958488]
[1745943462116,24.28958489,148.84,148.8,31.01001498]
[1745943464531,24.28958488,148.81,148.77,13.423]
[1745943464834,24.28958488,148.8,148.77,6.78468966]
[1745943465931,24.28958488,148.79,148.77,6.78468966]
[1745943466134,24.28958488,148.79,148.77,0.063]
[1745943466316,24.28958488,148.78,148.77,0.063]
[1745943466720,24.28958488,148.79,148.77,0.063]
[1745943467043,24.28958488,148.8,148.77,0.063]
[1745943467743,24.28958488,148.79,148.77,0.063]
[1745943468641,24.28958488,148.78,148.77,0.063]
[1745943472556,24.28958488,148.79,148.77,0.063]
[1745943473340,24.28958488,148.8,148.77,0.063]
[1745943473541,37.62958488,148.82,148.78,24.28958488]
[1745943474072,24.28958488,148.82,148.78,24.28958488]
[1745943475621,24.28958488,148.82,148.79,6.72088177]
[1745943477829,24.28958488,148.83,148.79,31.01046665]
[1745943478957,24.28958488,148.83,148.79,6.72088177]
[1745943479256,24.28958488,148.82,148.79,6.72088177]
[1745943479649,24.28958488,148.81,148.79,6.72088177]
[1745943479843,24.28958488,148.8,148.77,0.063]
[1745943480054,24.28958488,148.79,148.77,0.063]
[1745943480638,24.28958488,148.78,148.77,0.063]
[1745943483272,25.82558488,148.8,148.77,0.063]
[1745943483755,24.28958488,148.78,148.77,0.063]
[1745943484359,31.01091839,148.78,148.77,0.063]
[1745943485573,50.92871839,148.78,148.77,0.063]
[1745943486141,51.07087996,148.78,148.77,0.063]
[1745943487361,26.14216157,148.76,148.75,0.063]
[1745943487541,74.72133133,148.76,148.75,0.063]
[1745943487887,50.43174645,148.76,148.75,0.063]
[1745943488067,24.28958488,148.76,148.75,0.063]
[1745943497561,31.01182204,148.76,148.75,0.063]
[1745943497873,24.28958488,148.76,148.75,0.063]
[1745943498978,31.01182204,148.76,148.75,0.063]
[1745943499361,81.44356849,148.76,148.75,0.063]
[1745943500576,0.14216157,148.74,148.73,0.063]
[1745943500749,26.0,148.72,148.71,0.063]
[1745943501070,1.5558,148.7,148.69,0.063]
[1745943501270,50.27713133,148.7,148.69,0.063]
[1745943502274,74.72133133,148.68,148.67,0.063]
[1745943502652,81.44718551,148.68,148.67,0.063]
[1745943504788,81.30502394,148.68,148.67,0.063]
[1745943505080,50.28958488,148.68,148.67,0.063]
[1745943505251,81.30502394,148.68,148.67,0.063]
[1745943509987,57.01543906,148.68,148.67,0.063]
[1745943512086,16.94116218,148.72,148.67,0.063]
[1745943512398,24.28958488,148.69,148.67,0.063]
[1745943512699,37.60958488,148.71,148.67,24.35258488]
[1745943512986,24.28958488,148.72,148.68,24.28958488]
[1745943513975,24.28958488,148.72,148.69,6.72540184]
[1745943514479,24.28958488,148.7,148.67,0.063]
[1745943514798,24.28958488,148.68,148.67,0.063]
[1745943517287,6.72404518,148.72,148.67,0.063]
[1745943517502,276.90373281,148.73,148.67,0.063]
[1745943517674,24.28958488,148.7,148.67,0.063]
[1745943518001,24.28958488,148.71,148.67,24.35258488]
[1745943518297,24.28958488,148.71,148.68,6.72585418]
[1745943519599,24.28958488,148.71,148.67,31.07874935]
[1745943522379,24.28958488,148.7,148.67,6.78916447]
[1745943522893,24.28958488,148.71,148.67,31.07874935]
[1745943531011,24.28958488,148.71,148.67,6.78916447]
[1745943532115,24.28958488,148.71,148.67,31.07874935]
[1745943534197,24.28958488,148.7,148.67,6.78916447]
[1745943534587,24.28958488,148.71,148.67,31.07874935]
[1745943537618,15.20698509,148.71,148.67,21.99614956]
[1745943539018,28.52698509,148.73,148.69,15.20698509]
[1745943539190,13.32,148.73,148.7,21.93193465]
[1745943541012,28.52698509,148.73,148.69,21.9322019]
[1745943541232,15.20698509,148.72,148.69,6.72521681]
[1745943541595,15.20698509,148.7,148.67,6.78908883]
[1745943541926,15.20698509,148.7,148.67,0.063]
[1745943542091,15.20698509,148.69,148.67,0.063]
[1745943543122,15.20698509,148.71,148.67,15.26998509]
[1745943543622,24.33083359,148.69,148.67,0.063]
[1745943543810,24.33083359,148.68,148.67,0.063]
[1745943545330,31.05668777,148.68,148.67,0.063]
[1745943547101,44.45668777,148.68,148.67,0.063]
[1745943548632,37.73083359,148.68,148.67,0.063]
[1745943548929,44.45668777,148.68,148.67,0.063]
[1745943551724,37.73083359,148.68,148.67,0.063]
[1745943552031,13.4,148.68,148.67,0.063]
[1745943552618,20.12416291,148.72,148.67,24.39383359]
[1745943552802,24.33083359,148.72,148.68,24.33083359]
[1745943553005,13.4,148.73,148.69,24.33083359]
[1745943553317,13.4,148.73,148.7,24.33083359]
[1745943553915,13.4,148.73,148.67,0.063]
[1745943553916,37.73083359,148.73,148.69,24.33083359]
[1745943555317,44.4544811,148.73,148.69,24.33083359]
[1745943555613,37.73083359,148.73,148.69,24.33083359]
[1745943556324,37.73083359,148.73,148.69,31.05584234]
[1745943557429,0.28432314,148.72,148.69,31.05584234]
[1745943558021,0.28432314,148.72,148.71,24.33083359]
[1745943558235,0.28432314,148.72,148.71,31.05533093]
[1745943558959,0.14216157,148.72,148.71,31.05533093]
[1745943560045,0.28432314,148.73,148.71,31.05533093]
[1745943560230,0.28432314,148.73,148.7,31.05558413]
[1745943563540,0.28432314,148.73,148.7,21.92467684]
[1745943564152,15.48424944,148.73,148.69,40.57479685]
[1745943564647,15.48424944,148.73,148.68,97.6999263]
[1745943564648,0.28432314,148.71,148.68,97.6999263]
[1745943565442,0.28432314,148.71,148.69,4.95189134]
[1745943566255,0.28432314,148.71,148.68,104.42574233]
[1745943566758,0.28432314,148.69,148.67,0.063]
[1745943566920,15.48424944,148.69,148.67,0.063]
[1745943567116,15.48424944,148.68,148.67,0.063]
[1745943567621,22.21010362,148.68,148.67,0.063]
[1745943570053,0.28432314,148.67,148.61,6.79202227]
[1745943570250,0.28432314,148.64,148.61,6.79202227]
[1745943570455,0.28432314,148.64,148.61,21.99194857]
[1745943573047,0.28432314,148.65,148.63,15.1999263]
[1745943573252,15.1999263,148.69,148.64,15.1999263]
[1745943573425,15.1999263,148.68,148.61,23.61457795]
[1745943573630,15.1999263,148.66,148.62,15.1999263]
[1745943573853,0.28432314,148.65,148.62,15.1999263]
[1745943574048,15.48424944,148.65,148.61,21.84984857]
[1745943575567,0.28432314,148.63,148.61,6.64992227]
[1745943576175,0.28432314,148.61,148.6,0.063]
[1745943576694,15.48424944,148.61,148.6,0.063]
[1745943578967,0.28432314,148.61,148.6,0.063]
[1745943580340,15.48424944,148.61,148.6,0.063]
[1745943580575,0.28432314,148.61,148.6,0.063]
[1745943580897,0.28432314,148.62,148.6,0.063]
[1745943582306,0.28432314,148.62,148.6,15.2629263]
[1745943583500,0.28432314,148.63,148.61,6.72902227]
[1745943586503,15.48424944,148.63,148.6,6.7924751]
[1745943586691,15.48424944,148.62,148.6,6.7924751]
[1745943587305,15.48424944,148.61,148.6,0.063]
[1745943589501,0.28432314,148.61,148.6,0.063]
[1745943593100,0.14216157,148.61,148.6,21.9924014]
[1745943593477,13.39,148.67,148.6,21.9924014]
[1745943593714,28.5899263,148.67,148.63,15.1999263]
[1745943593877,0.28432314,148.66,148.63,15.1999263]
[1745943594077,28.5899263,148.67,148.63,15.1999263]
[1745943594487,0.28432314,148.66,148.63,15.1999263]
[1745943595300,0.28432314,148.66,148.63,21.92801114]
[1745943595508,22.21105621,148.66,148.62,6.72836038]
[1745943595707,0.28432314,148.64,148.62,6.72836038]
[1745943596215,0.28432314,148.64,148.61,21.92875522]
[1745943596713,15.48424944,148.64,148.61,6.72882892]
[1745943597216,15.48424944,148.64,148.6,21.99218876]
[1745943598311,15.48424944,148.62,148.6,0.063]
[1745943598520,0.28432314,148.61,148.6,0.063]
[1745943598682,15.48424944,148.61,148.59,0.063]
[1745943599817,0.28432314,148.61,148.59,0.063]
[1745943601908,15.48424944,148.61,148.59,0.063]
[1745943602090,7.01263858,148.63,148.59,0.063]
[1745943602283,0.28432314,148.61,148.59,0.063]
[1745943603230,15.48424944,148.61,148.59,0.063]
[1745943603417,15.48424944,148.6,148.59,0.063]
[1745943604194,0.28432314,148.6,148.59,0.063]
[1745943604999,0.28432314,148.6,148.59,15.2629263]
[1745943605199,0.14216157,148.6,148.59,15.2629263]
[1745943605708,13.3,148.62,148.59,21.99285428]
[1745943605893,15.34208787,148.65,148.61,15.1999263]
[1745943606100,0.28432314,148.65,148.62,15.1999263]
[1745943606734,0.14216157,148.65,148.62,15.1999263]
[1745943606904,0.14216157,148.65,148.63,15.1999263]
[1745943607106,0.28432314,148.65,148.63,15.1999263]
[1745943607425,0.14216157,148.65,148.63,15.1999263]
[1745943607607,13.3,148.66,148.63,21.92778669]
[1745943607914,0.14216157,148.65,148.63,21.92778669]
[1745943608216,13.3,148.66,148.63,21.92778669]
[1745943608405,13.3,148.66,148.64,15.1999263]
[1745943608608,0.03,148.67,148.65,15.1999263]
[1745943608806,0.03,148.67,148.66,15.1999263]
[1745943609000,0.03,148.67,148.63,23.54815239]
[1745943609001,0.03,148.67,148.65,15.1999263]
[1745943609927,0.03,148.67,148.66,6.72675904]
[1745943610116,0.03,148.67,148.66,21.92668534]
[1745943610697,0.03,148.67,148.66,40.5763342]
[1745943611304,0.03,148.67,148.66,40.71849577]
[1745943612504,0.03,148.67,148.66,40.5763342]
[1745943613023,0.03,148.67,148.66,21.92668534]
[1745943615232,0.03,148.67,148.66,124.5635269]
[1745943615535,0.03,148.7,148.66,158.00132588]
[1745943615831,0.03,148.7,148.69,49.69391334]
[1745943616037,0.03,148.7,148.69,132.33607491]
[1745943616210,0.03,148.7,148.69,133.68059975]
[1745943618045,1e-08,148.7,148.69,133.68059975]
[1745943618344,1e-08,148.7,148.69,141.51349975]
[1745943618550,1e-08,148.7,148.69,140.16897491]
[1745943619645,0.03,148.73,148.72,26.14216157]
[1745943619948,0.03,148.73,148.72,139.68506939]
[1745943622046,1e-08,148.73,148.72,158.33471825]
[1745943623337,1e-08,148.73,148.72,158.19255668]
[1745943624233,1e-08,148.73,148.72,158.33471825]
[1745943625652,0.03,148.76,148.75,93.42953571]
[1745943625860,0.03,148.77,148.76,24.46102421]
[1745943627053,0.03,148.77,148.76,24.31886264]
[1745943627434,0.03,148.77,148.76,31.0410998]
[1745943628662,0.03,148.77,148.76,49.69074866]
[1745943628843,0.03,148.77,148.76,49.83291023]
[1745943629283,0.03,148.77,148.76,132.33291023]
[1745943630062,1e-08,148.77,148.76,133.67688386]
[1745943630952,1e-08,148.77,148.76,132.33291023]
[1745943632151,1e-08,148.77,148.76,133.67688464]
[1745943632464,1e-08,148.77,148.76,132.33291023]
[1745943633860,1e-08,148.77,148.76,133.67688344]
[1745943634154,1e-08,148.79,148.78,44.64964886]
[1745943634467,1e-08,148.79,148.78,151.4685115]
[1745943635038,1e-08,148.79,148.78,158.18984501]
[1745943635664,1e-08,148.79,148.78,149.04666805]
[1745943642239,0.03,148.82,148.79,18.79181043]
[1745943642475,0.03,148.82,148.81,30.49353293]
[1745943643278,0.03,148.83,148.81,30.49353293]
[1745943643279,1e-08,148.83,148.82,25.3691758]
[1745943643570,1e-08,148.83,148.82,138.22054716]
[1745943648975,1e-08,148.83,148.82,138.36270873]
[1745943655379,1e-08,148.83,148.82,123.18702305]
[1745943655858,1e-08,148.83,148.82,6.71952694]
[1745943656065,1e-08,148.83,148.82,21.89521262]
[1745943656676,1e-08,148.83,148.82,15.17568568]
[1745943656879,1e-08,148.83,148.81,15.17568568]
[1745943657057,1e-08,148.83,148.81,21.89566172]
[1745943657255,1e-08,148.83,148.82,15.17568568]
[1745943659782,1e-08,148.83,148.8,13.3]
[1745943659783,1e-08,148.83,148.8,6.72022136]
[1745943659980,0.28432314,148.81,148.79,6.72072428]
[1745943660279,0.28432314,148.81,148.76,0.063]
[1745943660280,0.28432314,148.79,148.76,0.063]
[1745943660483,15.17568568,148.8,148.76,15.23868568]
[1745943660484,0.28432314,148.78,148.76,15.23868568]
[1745943660790,0.28432314,148.78,148.77,15.17568568]
[1745943661500,0.28432314,148.78,148.76,21.96071664]
[1745943662790,0.28432314,148.79,148.77,15.17568568]
[1745943663291,0.28432314,148.79,148.78,15.17568568]
[1745943663892,0.28432314,148.79,148.78,21.89701919]
[1745943664987,1e-08,148.83,148.78,21.89701919]
[1745943664988,0.28432314,148.81,148.78,21.89701919]
[1745943665196,0.14216157,148.81,148.8,15.17568568]
[1745943665490,1e-08,148.83,148.8,15.17568568]
[1745943665697,1e-08,148.83,148.82,15.17568568]
[1745943665867,1e-08,148.83,148.82,21.89521262]
[1745943666776,1e-08,148.83,148.81,21.89545802]
[1745943667491,1e-08,148.83,148.82,15.17568568]
[1745943667695,1e-08,148.83,148.77,13.24]
[1745943667696,0.28432314,148.82,148.77,13.24]
[1745943667897,0.28432314,148.79,148.76,104.46073579]
[1745943668102,0.28432314,148.79,148.76,21.96073579]
[1745943668271,15.31784725,148.77,148.76,0.063]
[1745943668467,0.28432314,148.77,148.76,0.063]
[1745943668666,0.28432314,148.77,148.76,21.96092284]
[1745943668886,0.28432314,148.77,148.76,0.063]
[1745943669902,0.28432314,148.77,148.76,6.78523716]
[1745943670101,0.28432314,148.77,148.76,31.09149141]
[1745943670966,30.52725425,148.82,148.76,49.74114027]
[1745943671165,14.74900001,148.83,148.79,24.30625425]
[1745943671166,1.50900001,148.83,148.79,24.30625425]
[1745943671390,1.50900001,148.83,148.8,24.30625425]
[1745943671592,1.50900001,148.83,148.81,24.30625425]
[1745943671770,1e-08,148.83,148.82,24.30625425]
[1745943671966,1e-08,148.83,148.81,24.30625425]
[1745943672172,1e-08,148.83,148.8,31.02648167]
[1745943672693,0.28432315,148.83,148.81,24.30625425]
[1745943673596,0.28432315,148.83,148.81,31.0259134]
[1745943673801,0.28432315,148.83,148.82,24.30625425]
[1745943674981,1e-08,148.83,148.82,31.02578119]
[1745943676307,1e-08,148.83,148.82,49.67543005]
[1745943677893,1e-08,148.83,148.82,49.81759162]
[1745943678195,1e-08,148.83,148.82,49.95975319]
[1745943679895,1e-08,148.83,148.82,156.76600744]
[1745943680195,1e-08,148.83,148.82,170.00600744]
[1745943682372,1e-08,148.84,148.83,25.65304745]
[1745943682576,1e-08,148.85,148.84,18.79181043]
[1745943682888,1e-08,148.85,148.84,43.09806468]
[1745943683586,1e-08,148.85,148.83,6.71907545]
[1745943683788,1e-08,148.85,148.84,24.30625425]
[1745943685003,1e-08,148.85,148.84,31.02487827]
[1745943686899,1e-08,148.85,148.84,24.30625425]
[1745943688695,1e-08,148.85,148.84,31.02487827]
[1745943689094,1e-08,148.85,148.83,31.02512117]
[1745943689797,1e-08,148.85,148.84,24.30625425]
[1745943690707,1e-08,148.85,148.84,31.02487827]
[1745943691508,1e-08,148.85,148.84,21.89048826]
[1745943695591,1e-08,148.85,148.84,40.68229869]
[1745943697306,1e-08,148.85,148.84,40.82446026]
[1745943701322,1e-08,148.86,148.85,18.933972]
[1745943701496,1e-08,148.86,148.85,117.9488823]
[1745943701940,1e-08,148.87,148.85,150.66705495]
[1745943702092,1e-08,148.87,148.86,33.96367467]
[1745943703234,1e-08,148.87,148.86,34.10583624]
[1745943703518,1e-08,148.87,148.86,35.44875223]
[1745943704126,1e-08,148.87,148.86,42.16647357]
[1745943704619,0.03,148.89,148.87,18.933972]
[1745943704788,0.03,148.89,148.88,33.96367467]
[1745943706316,0.03,148.89,148.88,40.68049358]
[1745943708425,0.03,148.89,148.88,123.18049358]
[1745943709330,0.03,148.89,148.88,108.00862934]
[1745943709525,0.03,148.89,148.88,6.71681891]
[1745943710708,0.03,148.89,148.88,21.88868315]
[1745943711306,0.03,148.89,148.88,40.68049358]
[1745943723340,0.03,148.89,148.88,25.50862934]
[1745943723639,0.03,148.89,148.88,40.68049358]
[1745943730147,0.03,148.89,148.88,40.82265515]
[1745943730347,1e-08,148.89,148.88,165.83740904]
[1745943730536,1e-08,148.89,148.88,164.49451939]
[1745943730718,0.03,148.91,148.9,18.79181043]
[1745943731040,0.03,148.91,148.9,116.60583624]
[1745943731336,0.03,148.91,148.9,123.32175296]
[1745943731544,0.03,148.91,148.9,124.66433737]
[1745943731838,0.03,148.94,148.93,33.96367467]
[1745943732945,0.03,148.94,148.93,34.10583624]
[1745943733536,0.03,148.94,148.93,40.82040012]
[1745943737455,0.03,148.95,148.94,18.79181043]
[1745943737662,0.03,148.95,148.94,35.30583756]
[1745943737949,0.03,148.95,148.94,116.60583624]
[1745943738549,0.03,148.95,148.94,117.94811397]
[1745943738853,0.03,148.95,148.94,124.66222703]
[1745943739247,1e-08,148.95,148.94,138.02222703]
[1745943740831,1e-08,148.95,148.94,153.19409127]
[1745943741062,1e-08,148.95,148.94,151.85181354]
[1745943741234,1e-08,148.95,148.94,177.85181354]
[1745943742876,1e-08,148.95,148.94,162.6799493]
[1745943743358,1e-08,148.95,148.94,167.58874342]
[1745943743762,1e-08,148.95,148.94,182.76060766]
[1745943744537,1e-08,148.95,148.94,156.76060766]
[1745943753272,0.9627914,148.97,148.94,156.76060766]
[1745943753273,0.5,149.0,148.99,34.10583624]
[1745943753462,0.5,149.0,148.99,116.60583624]
[1745943753659,0.5,149.0,148.99,101.29181043]
[1745943753970,0.5,149.0,148.99,116.46367467]
[1745943754142,0.5,149.0,148.99,123.17553452]
[1745943759884,0.5,149.0,148.99,123.31769609]
[1745943769991,0.5,149.0,148.99,128.21821746]
[1745943772296,0.5,149.0,148.99,112.90419165]
[1745943772586,0.5,149.0,148.99,128.07605589]
[1745943775060,0.5,149.0,148.99,11.61238122]
[1745943775266,0.5,149.0,148.99,26.78424546]
[1745943775769,0.5,149.0,148.99,40.67553452]
[1745943776284,0.5,149.0,148.99,25.50367028]
[1745943776472,0.5,149.0,148.99,40.67553452]
[1745943777377,0.5,149.0,148.99,45.594317]
[1745943779890,17.18236424,149.0,148.99,4.91878248]
[1745943780063,17.18236424,149.0,148.97,82.5]
[1745943780388,15.17186424,148.98,148.95,6.71337731]
[1745943780763,15.17186424,148.98,148.96,4.92965331]
[1745943781166,15.17186424,148.97,148.96,4.92965331]
[1745943781865,15.17186424,148.97,148.93,35.10634696]
[1745943783189,15.17186424,148.98,148.94,15.17186424]
[1745943783493,2.0105,149.0,148.95,15.17186424]
[1745943783790,15.17186424,148.99,148.95,15.17186424]
[1745943784092,15.17186424,148.99,148.95,21.88512315]
[1745943784271,2.0105,149.0,148.96,18.79181043]
[1745943784474,15.17186424,148.99,148.96,18.79181043]
[1745943784788,15.17186424,148.99,148.96,18.64964886]
[1745943785998,15.17186424,148.99,148.96,25.36246067]
[1745943787584,15.17186424,148.99,148.96,6.71281181]
[1745943787789,15.17186424,148.98,148.95,6.8556327]
[1745943788284,15.17186424,148.99,148.95,22.02749694]
[1745943790663,17.18236424,149.0,148.96,15.17186424]
[1745943791368,17.18236424,149.0,148.96,21.88477535]
[1745943792172,2.0105,149.0,148.96,21.88477535]
[1745943792378,17.18236424,149.0,148.96,21.88477535]
[1745943792685,15.17186424,148.99,148.96,6.71291111]
[1745943793997,15.17186424,148.98,148.95,6.7136623]
[1745943794293,15.17186424,148.99,148.95,21.88552654]
[1745943794497,15.45618738,148.98,148.94,104.38578887]
[1745943795290,0.28432314,148.98,148.95,15.17186424]
[1745943795495,0.28432314,148.98,148.95,21.88549053]
[1745943796375,15.45618738,148.98,148.94,104.38576862]
[1745943796680,0.28432314,148.98,148.94,21.88576862]
[1745943797498,0.28432314,148.98,148.94,6.71390438]
[1745943797499,15.45618738,148.98,148.94,6.71390438]
[1745943797704,15.45618738,148.98,148.94,21.88576862]
[1745943798588,15.45618738,148.98,148.94,6.71390438]
[1745943798786,15.17186424,148.97,148.94,6.71390438]
[1745943799591,15.17186424,148.96,148.93,19.93445026]
[1745943799774,15.17186424,148.96,148.93,6.71445026]
[1745943800368,15.17186424,148.96,148.92,6.71481088]
[1745943800599,15.17186424,148.96,148.92,21.88667512]
[1745943800799,15.17186424,148.97,148.93,15.17186424]
[1745943801191,15.17186424,148.97,148.92,21.88667512]
[1745943801704,15.17186424,148.96,148.92,21.88667512]
[1745943802004,15.17186424,148.95,148.91,6.7783671]
[1745943802684,15.17186424,148.94,148.91,0.063]
[1745943803593,15.17186424,148.94,148.91,6.77832869]
[1745943804418,33.6759,148.99,148.93,15.17186424]
[1745943804583,33.6759,148.99,148.94,15.17186424]
[1745943804584,15.17186424,148.98,148.94,15.17186424]
[1745943804786,15.17186424,148.97,148.92,15.31402581]
[1745943805789,15.17186424,148.98,148.94,15.17186424]
[1745943807123,16.76946424,148.99,148.95,15.17186424]
[1745943807526,15.17186424,148.97,148.93,38.67283784]
[1745943808220,15.17186424,148.98,148.94,15.17186424]
[1745943808897,15.17186424,148.98,148.95,6.7136623]
[1745943811022,16.76946424,148.99,148.95,15.17186424]
[1745943811417,1.5976,148.99,148.95,15.17186424]
[1745943811617,0.5,149.0,148.96,15.17186424]
[1745943811819,0.5,149.0,148.97,15.17186424]
[1745943812627,0.5,149.0,148.98,6.71231037]
[1745943813220,15.67186424,149.0,148.98,6.71231037]
[1745943814617,0.5,149.0,148.98,21.88417461]
[1745943815016,0.5,149.0,148.99,15.17186424]
[1745943816828,0.5,149.0,148.99,21.88372409]
[1745943822246,1e-08,149.0,148.99,40.67553452]
[1745943822543,1e-08,149.0,148.99,40.81769609]
[1745943823711,1e-08,149.0,148.99,42.15946728]
[1745943825937,1e-08,149.0,148.99,124.65946728]
[1745943830131,1e-08,149.0,148.99,123.31769609]
[1745943837650,1e-08,149.0,148.99,123.17553452]
[1745943839946,1e-08,149.0,148.99,124.6596268]
[1745943842448,1e-08,149.0,148.99,123.31769609]
[1745943847848,1e-08,149.0,148.99,124.65958114]
[1745943849153,1e-08,149.0,148.99,123.31769609]
[1745943851156,1e-08,149.0,148.99,124.65951139]
[1745943854490,1e-08,149.0,148.99,6.71185985]
[1745943854833,1e-08,149.0,148.98,21.88398757]
[1745943856151,1e-08,149.0,148.98,6.71212333]
[1745943858049,1e-08,149.0,148.98,21.88398757]
[1745943858242,1e-08,149.0,148.96,48.81434973]
[1745943858243,1e-08,149.0,148.97,21.88444126]
[1745943858654,1e-08,149.0,148.98,15.17186424]
[1745943858846,1e-08,149.0,148.97,21.88444126]
[1745943859971,1e-08,149.0,148.98,15.17186424]
[1745943860276,1e-08,149.0,148.99,15.17186424]
[1745943860777,1e-08,149.0,148.98,6.71203263]
[1745943860983,1e-08,149.0,148.98,21.88389687]
[1745943861343,1e-08,149.0,148.99,15.17186424]
[1745943861676,1e-08,149.0,148.99,15.31402581]
[1745943861849,1e-08,149.0,148.98,6.71203263]
[1745943862042,1e-08,149.0,148.98,21.88389687]
[1745943862755,1e-08,149.0,148.99,15.17186424]
[1745943863565,1e-08,149.0,148.97,6.71257424]
[1745943863867,15.17186425,149.0,148.96,110.91186424]
[1745943864182,15.17186425,149.0,148.96,13.24]
[1745943864341,15.17186425,149.0,148.96,15.17186424]
[1745943864877,15.17186425,149.0,148.96,21.88488683]
[1745943868080,15.17186424,148.99,148.96,6.71302259]
[1745943871899,15.45618738,148.98,148.93,82.563]
[1745943872072,15.17186424,148.97,148.94,6.71411299]
[1745943872271,15.45618738,148.98,148.94,21.88597723]
[1745943872778,0.28432314,148.98,148.95,15.17186424]
[1745943873390,0.28432314,148.98,148.95,21.88520841]
[1745943873575,6.29812315,149.0,148.96,15.17186424]
[1745943873783,6.01380001,149.0,148.97,15.17186424]
[1745943874086,21.18566425,149.0,148.96,15.17186424]
[1745943875795,15.17186424,148.99,148.96,21.88469054]
[1745943875983,6.01380001,149.0,148.96,21.88469054]
[1745943876187,1e-08,149.0,148.98,15.17186424]
[1745943878292,1e-08,149.0,148.97,15.17186424]
[1745943879084,15.17186425,149.0,148.97,15.17186424]
[1745943879266,15.17186424,148.99,148.95,6.7136623]
[1745943879468,15.17186424,148.97,148.95,6.7136623]
[1745943879880,15.17186424,148.98,148.95,6.7136623]
[1745943883128,15.17186424,148.96,148.93,0.063]
[1745943883403,15.17186424,148.95,148.93,0.063]
[1745943883809,15.17186424,148.96,148.93,0.063]
[1745943884682,17.07178738,148.97,148.94,15.17186424]
[1745943884999,1.89992314,148.97,148.94,15.17186424]
[1745943885209,17.07178738,148.97,148.93,15.23486424]
[1745943886009,15.31402581,148.94,148.93,0.063]
[1745943886310,15.45618738,148.94,148.93,0.063]
[1745943890310,0.28432314,148.94,148.93,0.063]
[1745943890610,0.14216157,148.94,148.93,0.063]
[1745943891105,15.45618738,148.94,148.93,0.063]
[1745943891986,0.28432314,148.95,148.93,0.063]
[1745943892191,15.17186424,148.96,148.93,0.063]
[1745943892404,15.31402581,148.95,148.93,0.063]